fUSD/lending_fUSD_20240912
["ID","MTS","AMOUNT","RATE_DAILY","PERIOD"]
[337793749,1726122638751,-4780.32,0.00014933,2]
[337793751,1726122638762,-17972.13,0.00014933,2]
[337793753,1726122638772,-500.0,0.00014933,2]
[337793755,1726122638781,-220.08152175,0.00014933,2]
[337793757,1726122638791,-6329.14,0.00014933,2]
[337793759,1726122638801,-5488.19,0.00014933,2]
[337793761,1726122638811,-151.0,0.00014933,2]
[337793763,1726122638821,-151.0,0.00014933,2]
[337793765,1726122638831,-4905.29,0.00014933,2]
[337793767,1726122638842,-2027.39,0.00014933,2]
[337793769,1726122638851,-3106.34,0.00014933,2]
[337793771,1726122638860,-2323.25,0.00014933,2]
[337793773,1726122638869,-100000.0,0.00014933,2]
[337793775,1726122638879,-1310.44,0.00014933,2]
[337793777,1726122638889,-500.0,0.00014933,2]
[337793779,1726122638899,-4322.07,0.00014933,2]
[337793781,1726122638909,-2406.7,0.00014933,2]
[337793783,1726122638919,-2915.08,0.00014933,2]
[337793785,1726122638929,-2505.53,0.00014933,2]
[337793787,1726122638938,-532.68,0.00014933,2]
[337793789,1726122638948,-500.0,0.00014933,2]
[337793791,1726122638957,-1183.73,0.00014933,2]
[337793793,1726122638966,-2418.97,0.00014933,2]
[337793795,1726122638975,-3689.48,0.00014933,2]
[337793797,1726122638985,-1527.91,0.00014933,2]
[337793799,1726122638995,-500.0,0.00014933,2]
[337793801,1726122639005,-500.0,0.00014933,2]
[337793803,1726122639015,-500.0,0.00014933,2]
[337793805,1726122639024,-500.0,0.00014933,2]
[337793807,1726122639033,-1764.42,0.00014933,2]
[337793808,1726122639042,-888.18,0.00014933,2]
[337793810,1726122639052,-500.0,0.00014933,2]
[337793812,1726122639062,-2487.49,0.00014933,2]
[337793814,1726122639071,-1951.44,0.00014933,2]
[337793816,1726122639080,-2328.78,0.00014933,2]
[337793818,1726122639090,-500.0,0.00014933,2]
[337793820,1726122639099,-500.0,0.00014933,2]
[337793822,1726122639110,-111832.19347542,0.00014933,2]
[337793824,1726122639123,-3510.72,0.00014933,2]
[337793826,1726122639136,-12294.39456971,0.00014933,2]
[337793912,1726122639946,-582.24,0.00014933,2]
[337793914,1726122639958,-6517.392,0.00014933,2]
[337794313,1726122644159,-500.0,0.00014932,2]
[337794315,1726122644168,-889.0,0.00014933,2]
[337794317,1726122644179,-1249.688,0.00014933,2]
[337794444,1726122645789,-812.43,0.00014913,3]
[337794445,1726122645798,-548.24980589,0.00014932,2]
[337794446,1726122645808,-618.36080821,0.00014932,2]
[337794447,1726122645817,-223.582,0.00014933,2]
[337794448,1726122645827,-2014.35,0.00014933,2]
[337794449,1726122645836,-500.55,0.00014933,2]
[337794450,1726122645846,-54.12514308,0.00014933,2]
[337795450,1726123499870,1050.0,0.00011,2]
[337795451,1726123580329,157.85,0.00010959,2]
[337795452,1726123660186,605.87,0.00011941,2]
[337797114,1726123831760,-319.8688,0.00013805,2]
[337797116,1726123831771,-200.02,0.00013857,2]
[337797117,1726123831780,-164.56,0.00013872,2]
[337797118,1726123831790,-1000.0,0.00013885,2]
[337797119,1726123831799,-316.09,0.000139,2]
[337797120,1726123831809,-250.0,0.00013905,2]
[337797121,1726123831818,-605.87,0.00014205,2]
[337797122,1726123831827,-1000.0,0.00014252,2]
[337797123,1726123831837,-150.0,0.00014767,2]
[337797124,1726123831846,-2100.74292,0.0001478,2]
[337797125,1726123831857,-3000.0,0.000148,2]
[337797126,1726123831868,-329.11819762,0.0001481,2]
[337797127,1726123831879,-411.78543734,0.00014813,2]
[337797128,1726123831888,-411.7854373,0.00014816,2]
[337797129,1726123831898,-411.7854373,0.00014819,2]
[337797130,1726123831907,-300.0,0.00014821,2]
[337797131,1726123831916,-170.9928382,0.00014822,2]
[337797132,1726123831925,-4047.05,0.00014822,2]
[337797133,1726123831935,-962.1836,0.00014822,2]
[337797134,1726123831944,-411.7854373,0.00014823,2]
[337797135,1726123831954,-411.7854373,0.00014826,2]
[337797136,1726123831964,-411.7854373,0.00014829,2]
[337797137,1726123831973,-411.7854373,0.00014832,2]
[337797138,1726123831985,-354.4753,0.00014833,2]
[337797139,1726123831994,-8271.8635,0.00014833,2]
[337797140,1726123832004,-411.7854373,0.00014836,2]
[337797141,1726123832013,-411.7854373,0.00014839,2]
[337797142,1726123832023,-411.7854373,0.00014842,2]
[337797143,1726123832032,-150.0,0.00014872,2]
[337797144,1726123832041,-3696.51,0.00014872,2]
[337797145,1726123832051,-4007.887215,0.0001488,2]
[337797146,1726123832062,-500.709,0.00014898,2]
[337797147,1726123832071,-184.868,0.00014898,2]
[337797148,1726123832080,-431.0,0.000149,2]
[337797149,1726123832089,-475.2,0.000149,2]
[337797150,1726123832099,-13049.80259629,0.00014902,2]
[337797151,1726123832122,-303.0874233,0.00014902,2]
[337797152,1726123832150,-544.57707993,0.00014902,2]
[337797153,1726123832162,-418.54007673,0.00014902,2]
[337797154,1726123832175,-418.17284334,0.00014902,2]
[337797155,1726123832193,-11786.6630655,0.00014902,2]
[337797360,1726123837782,-456.33706747,0.00014902,2]
[337797361,1726123837999,-4100.0,0.00014902,2]
[337797362,1726123838027,-46986.60026804,0.00014902,2]
[337797363,1726123838036,-270.8,0.00014902,3]
[337797364,1726123838046,-812.42,0.00014902,3]
[337797365,1726123838055,-500.0,0.00014909,2]
[337797366,1726123838065,-500.0,0.00014909,2]
[337797367,1726123838076,-500.0,0.00014909,2]
[337797368,1726123838085,-500.0,0.00014909,2]
[337797369,1726123838094,-500.0,0.00014909,2]
[337797370,1726123838104,-500.0,0.00014909,2]
[337797371,1726123838113,-500.0,0.00014909,2]
[337797372,1726123838122,-500.0,0.00014909,2]
[337797373,1726123838131,-500.0,0.00014909,2]
[337797374,1726123838141,-186.34067264,0.00014909,2]
[337797375,1726123838151,-500.0,0.00014909,2]
[337797376,1726123838160,-500.0,0.00014909,2]
[337797377,1726123838169,-500.0,0.00014909,2]
[337797378,1726123838178,-349.73015402,0.00014909,2]
[337797379,1726123838187,-203.33216918,0.00014909,2]
[337797380,1726123838200,-195159.451052,0.0001491,2]
[337797381,1726123838209,-5216.31,0.0001491,2]
[337797382,1726123838219,-51352.79368393,0.0001491,2]
[337797392,1726123839778,-10795.95706516,0.0001491,2]
[337797393,1726123839789,-54434.82433093,0.0001491,2]
[337797394,1726123839802,-1629.61182147,0.0001491,2]
[337797395,1726123839813,-703.655,0.0001491,2]
[337797396,1726123839878,-8822.11562724,0.0001491,2]
[337797397,1726123839889,-4307.56043718,0.0001491,2]
[337797398,1726123839968,-9531.24449686,0.0001491,2]
[337797399,1726123839980,-20106.592846,0.0001491,2]
[337797400,1726123839995,-415.1,0.0001491,2]
[337797401,1726123840006,-1950.56667078,0.0001491,2]
[337797402,1726123840020,-1709.81795575,0.0001491,2]
[337797403,1726123840059,-109478.16618497,0.0001491,2]
[337797404,1726123840071,-661.0,0.0001491,2]
[337797405,1726123840084,-266.62116015,0.0001491,2]
[337797408,1726123840097,-46502.99273458,0.0001491,2]
[337797410,1726123840108,-6764.89,0.0001491,2]
[337797412,1726123840119,-1293.22,0.0001491,2]
[337797414,1726123840128,-1108.37752946,0.0001491,2]
[337797416,1726123840139,-516.682086,0.0001491,2]
[337797699,1726123842905,-640.224,0.00014909,2]
[337797700,1726123842917,-2336.686,0.00014909,2]
[337797701,1726123842926,-743.31395,0.00014909,2]
[337797702,1726123842938,-1388.82081271,0.00014909,2]
[337797703,1726123842950,-591.49678303,0.00014909,2]
[337797704,1726123842962,-253.27845426,0.00014909,2]
[337797705,1726123842972,-2976.91,0.00014909,2]
[337797706,1726123842981,-758.33038454,0.0001491,2]
[337797707,1726123842994,-2297.34931071,0.0001491,2]
[337797709,1726123843006,-2421.6,0.0001491,2]
[337797711,1726123843018,-767.00700092,0.0001491,2]
[337797713,1726123843030,-1732.88242047,0.0001491,2]
[337797715,1726123843049,-452.1312679,0.0001491,2]
[337797717,1726123843059,-4716.66,0.0001491,2]
[337797719,1726123843071,-17706.17,0.0001491,2]
[337797721,1726123843081,-5301.98,0.0001491,2]
[337797723,1726123843091,-500.0,0.0001491,2]
[337797725,1726123843101,-6254.99,0.0001491,2]
[337797727,1726123843110,-5429.48,0.0001491,2]
[337797729,1726123843120,-4837.22,0.0001491,2]
[337797731,1726123843129,-4275.63,0.0001491,2]
[337797733,1726123843138,-2857.32,0.0001491,2]
[337797735,1726123843148,-92235.53117811,0.0001491,2]
[337797737,1726123843158,-2457.44,0.0001491,2]
[337797739,1726123843168,-564.33,0.0001491,2]
[337797741,1726123843178,-1285.46,0.0001491,2]
[337797743,1726123843189,-1941.56,0.0001491,2]
[337797745,1726123843199,-1919.93,0.0001491,2]
[337797747,1726123843209,-500.0,0.0001491,2]
[337797749,1726123843219,-2318.17,0.0001491,2]
[337797751,1726123843229,-2384.02,0.0001491,2]
[337797753,1726123843238,-500.0,0.0001491,2]
[337797755,1726123843248,-500.0,0.0001491,2]
[337797758,1726123843258,-6918.83,0.0001491,2]
[337797760,1726123843268,-915.47,0.0001491,2]
[337797762,1726123843278,-500.0,0.0001491,2]
[337797764,1726123843287,-2976.91,0.0001491,2]
[337797766,1726123843299,-2226.45,0.00014911,2]
[337797768,1726123843308,-1134.41,0.00014911,2]
[337797770,1726123843319,-500.0,0.00014911,2]
[337797772,1726123843329,-1942.91,0.00014911,2]
[337797774,1726123843338,-500.0,0.00014911,2]
[337797776,1726123843348,-200.51219377,0.00014911,2]
[337797778,1726123843358,-1732.57,0.00014911,2]
[337797780,1726123843367,-500.0,0.00014911,2]
[337797782,1726123843378,-2306.42,0.00014911,2]
[337797784,1726123843387,-590.56,0.00014911,2]
[337797786,1726123843397,-3535.75,0.00014911,2]
[337797788,1726123843408,-500.0,0.00014911,2]
[337797789,1726123843417,-1399.44,0.00014911,2]
[337797791,1726123843427,-500.0,0.00014911,2]
[337797793,1726123843436,-851.17,0.00014911,2]
[337797795,1726123843446,-500.0,0.00014911,2]
[337797797,1726123843455,-2308.37,0.00014911,2]
[337797799,1726123843465,-898.81,0.00014911,2]
[337797801,1726123843474,-3125.14,0.00014911,2]
[337797803,1726123843484,-1828.71,0.00014911,2]
[337797805,1726123843495,-500.0,0.00014911,2]
[337797807,1726123843505,-500.0,0.00014911,2]
[337797809,1726123843515,-500.0,0.00014911,2]
[337797811,1726123843524,-1971.77,0.00014911,2]
[337797813,1726123843535,-1475.91,0.00014911,2]
[337797815,1726123843544,-1810.61,0.00014911,2]
[337797817,1726123843553,-500.0,0.00014911,2]
[337797819,1726123843563,-555.07,0.00014911,2]
[337797821,1726123843572,-500.0,0.00014911,2]
[337797823,1726123843581,-500.0,0.00014911,2]
[337797825,1726123843591,-500.0,0.00014911,2]
[337797827,1726123843599,-2833.08,0.00014911,2]
[337797829,1726123843609,-1681.05,0.00014911,2]
[337797831,1726123843618,-500.0,0.00014911,2]
[337797833,1726123843628,-500.0,0.00014911,2]
[337797835,1726123843640,-1445.2,0.00014911,2]
[337797837,1726123843650,-3593.82,0.00014911,2]
[337797839,1726123843660,-500.0,0.00014911,2]
[337797841,1726123843670,-1295.27,0.00014911,2]
[337797843,1726123843680,-1272.88,0.00014911,2]
[337797845,1726123843690,-2009.67,0.00014911,2]
[337797847,1726123843700,-3193.05,0.00014911,2]
[337797849,1726123843710,-500.0,0.00014911,2]
[337797851,1726123843720,-676.29,0.00014911,2]
[337797852,1726123843730,-500.0,0.00014911,2]
[337797854,1726123843739,-500.0,0.00014911,2]
[337797856,1726123843750,-2652.11,0.00014911,2]
[337797858,1726123843760,-2255.24,0.00014911,2]
[337797860,1726123843769,-500.0,0.00014911,2]
[337797862,1726123843780,-528.97,0.00014911,2]
[337797864,1726123843790,-500.0,0.00014911,2]
[337797866,1726123843799,-2319.11,0.00014911,2]
[337797868,1726123843808,-656.92,0.00014911,2]
[337797870,1726123843818,-500.0,0.00014911,2]
[337797871,1726123843827,-500.0,0.00014911,2]
[337797873,1726123843837,-1297.58,0.00014911,2]
[337797875,1726123843846,-2079.59,0.00014911,2]
[337797877,1726123843856,-803.09,0.00014911,2]
[337797879,1726123843865,-500.0,0.00014911,2]
[337797881,1726123843875,-1304.79,0.00014911,2]
[337797883,1726123843884,-1120.59,0.00014911,2]
[337797885,1726123843894,-500.0,0.00014911,2]
[337797887,1726123843903,-1424.61,0.00014911,2]
[337797889,1726123843913,-785.23,0.00014911,2]
[337797891,1726123843922,-500.0,0.00014911,2]
[337797893,1726123843931,-1247.84,0.00014911,2]
[337797894,1726123843941,-2900.05,0.00014911,2]
[337797896,1726123843950,-1921.79,0.00014911,2]
[337797898,1726123843960,-2114.12,0.00014911,2]
[337797900,1726123843969,-2699.03,0.00014911,2]
[337797902,1726123843979,-500.0,0.00014911,2]
[337797904,1726123843992,-1353.18,0.00014911,2]
[337797906,1726123844001,-1850.05,0.00014911,2]
[337797908,1726123844010,-500.0,0.00014911,2]
[337797910,1726123844020,-500.0,0.00014911,2]
[337797912,1726123844031,-534.58,0.00014911,2]
[337797914,1726123844040,-502.12159426,0.00014911,2]
[337797916,1726123844049,-512.47504119,0.00014911,2]
[337797918,1726123844058,-957.45,0.00014911,2]
[337797919,1726123844071,-3483.29,0.00014911,2]
[337797921,1726123844081,-3344.97,0.00014911,2]
[337797923,1726123844090,-1406.49,0.00014911,2]
[337797925,1726123844099,-592.39,0.00014911,2]
[337797927,1726123844109,-1079.33,0.00014911,2]
[337797929,1726123844119,-500.0,0.00014911,2]
[337797931,1726123844128,-327.0503652,0.00014911,2]
[337797933,1726123844137,-665.19,0.00014911,2]
[337797935,1726123844147,-817.75,0.00014911,2]
[337797937,1726123844157,-2617.79,0.00014911,2]
[337797939,1726123844168,-1852.77,0.00014911,2]
[337797941,1726123844178,-500.0,0.00014911,2]
[337797943,1726123844188,-2286.57,0.00014911,2]
[337797945,1726123844198,-877.82,0.00014911,2]
[337797947,1726123844207,-2704.17,0.00014911,2]
[337797949,1726123844217,-616.66,0.00014911,2]
[337797951,1726123844226,-500.0,0.00014911,2]
[337797953,1726123844236,-1046.34,0.00014911,2]
[337797955,1726123844246,-500.0,0.00014911,2]
[337797957,1726123844255,-500.0,0.00014911,2]
[337797959,1726123844266,-500.0,0.00014911,2]
[337797961,1726123844275,-876.26,0.00014911,2]
[337797963,1726123844285,-724.0,0.00014911,2]
[337797965,1726123844294,-6163.34,0.00014911,2]
[337797967,1726123844304,-500.0,0.00014911,2]
[337797969,1726123844315,-903.46,0.00014911,2]
[337797970,1726123844325,-698.63,0.00014911,2]
[337797972,1726123844334,-554.54,0.00014911,2]
[337797974,1726123844344,-151.0,0.00014911,2]
[337797976,1726123844354,-151.0,0.00014911,2]
[337797978,1726123844363,-151.0,0.00014911,2]
[337797980,1726123844372,-500.0,0.00014911,2]
[337797982,1726123844382,-956.38846185,0.00014911,2]
[337797984,1726123844396,-604.07802196,0.00014911,2]
[337797986,1726123844407,-296.13443335,0.00014911,2]
[337797988,1726123844419,-2126.874996,0.00014911,2]
[337797991,1726123844431,-422.23408684,0.00014911,2]
[337797993,1726123844440,-285.15571476,0.00014911,2]
[337797997,1726123844474,-9493.0405304,0.0001491,2]
[337797999,1726123844485,-5626.523833,0.0001491,2]
[337798001,1726123844496,-394.58101345,0.0001491,2]
[337798003,1726123844507,-430.65367495,0.0001491,2]
[337798008,1726123844546,-16279.51165615,0.0001491,2]
[337798010,1726123844559,-1315.53579584,0.0001491,2]
[337799323,1726124347550,545.28,0.00012001,2]
[337799328,1726124519224,12167.83,0.00012,2]
[337799430,1726124920807,569.39,0.00011987,2]
[337799478,1726125032095,-824.44838653,0.00012189,2]
[337799480,1726125032105,-368.76106257,0.0001283,2]
[337799481,1726125032117,-427.23893743,0.0001283,2]
[337799483,1726125032127,-796.0,0.00013505,2]
[337799485,1726125032136,-158.04,0.0001391,2]
[337799487,1726125032146,-180.56,0.00013912,2]
[337799488,1726125032155,-250.0,0.00013913,2]
[337799490,1726125032165,-1000.0,0.00013919,2]
[337799492,1726125032174,-2245.66397245,0.0001399,2]
[337799493,1726125032184,-796.0,0.00014181,2]
[337799495,1726125032194,-569.39,0.00014251,2]
[337799497,1726125032204,-152.0,0.00014699,3]
[337799498,1726125032214,-3000.0,0.000148,2]
[337799499,1726125032223,-209.2355073,0.00014873,2]
[337799500,1726125032317,-290.7644927,0.00014873,2]
[337799501,1726125032326,-541.6,0.00014878,3]
[337799502,1726125032336,-978.32440804,0.00014887,2]
[337799503,1726125032347,-2102.67118194,0.00014887,2]
[337799510,1726125032443,-35512.62965987,0.00014887,2]
[337799511,1726125032455,-2000.37034013,0.00014887,2]
[337799512,1726125032567,-2587.71929825,0.00014887,2]
[337799518,1726125038135,-164.56,0.00013905,2]
[337799519,1726125038146,-1527.60234064,0.00014887,2]
[337799520,1726125038165,-329.11819762,0.00014789,2]
[337799521,1726125038175,-49538.41766903,0.00014887,2]
[337799522,1726125038185,-500.0,0.00014887,2]
[337799523,1726125038196,-500.0,0.00014887,2]
[337799524,1726125038206,-500.0,0.00014887,2]
[337799525,1726125038217,-500.0,0.00014887,2]
[337799526,1726125038227,-500.0,0.00014887,2]
[337799527,1726125038236,-1231.9,0.00014887,2]
[337799528,1726125038245,-1231.9,0.00014887,2]
[337799529,1726125038255,-2480.76,0.00014887,2]
[337799530,1726125038264,-2480.76,0.00014887,2]
[337799531,1726125038273,-198.63861255,0.00014887,2]
[337799532,1726125038283,-500.0,0.00014887,2]
[337799533,1726125038292,-500.0,0.00014887,2]
[337799534,1726125038302,-1203.35,0.00014887,2]
[337799535,1726125038312,-1203.35,0.00014887,2]
[337799536,1726125038323,-2154.02,0.00014887,2]
[337799537,1726125038333,-2154.02,0.00014887,2]
[337799538,1726125038344,-500.0,0.00014888,2]
[337799539,1726125038353,-500.0,0.00014888,2]
[337799540,1726125038362,-1231.9,0.00014888,2]
[337799541,1726125038371,-1454.51406316,0.00014888,2]
[337799738,1726125040429,-581.405,0.00014888,2]
[337800049,1726125043734,-500.0,0.00014887,2]
[337800051,1726125043745,-500.0,0.00014887,2]
[337800053,1726125043756,-161.64,0.00014888,2]
[337801360,1726125238070,150.0,0.00011164,2]
[337801494,1726125261296,501.10810814,0.00011164,2]
[337801503,1726125261498,502.69097371,0.00011164,2]
[337801577,1726125263373,500.0,0.00011164,2]
[337801960,1726125447001,558.7,0.00011981,2]
[337801984,1726125648476,239.87,0.00010959,2]
[337802385,1726125883832,172.99,0.00010598,2]
[337802386,1726125924920,971.45750341,0.000108,2]
[337802387,1726125928988,579.94515437,0.000101,2]
[337802388,1726125953519,555.83662987,6.94e-05,2]
[337802390,1726125984073,606.03,0.00011969,2]
[337802394,1726126078572,833.94057283,0.0001,2]
[337802429,1726126231437,150.15,0.00010959,2]
[337802434,1726126232222,-3870.22387669,0.00012999,2]
[337802437,1726126234474,-655.08169987,0.00012999,2]
[337802438,1726126234487,-1161.35257624,0.00012999,2]
[337802439,1726126234499,-1184.24886143,0.00012999,2]
[337802446,1726126238258,-725.98,0.00012999,2]
[337802447,1726126238270,-397.21927049,0.00012999,2]
[337802448,1726126238279,-250.0,0.00013116,2]
[337802449,1726126238292,-1194.03,0.00013119,2]
[337802450,1726126238302,-200.0,0.00013148,2]
[337802451,1726126238311,-157.95,0.00013224,2]
[337802452,1726126238321,-152.04,0.00013256,2]
[337802453,1726126238330,-500.0,0.00013262,2]
[337802454,1726126238340,-300.0,0.00013272,2]
[337802455,1726126238349,-250.0,0.00013273,2]
[337802456,1726126238359,-150.0,0.00013875,2]
[337802457,1726126238368,-218.38,0.00013875,2]
[337802458,1726126238378,-702.89,0.00013875,2]
[337802459,1726126238387,-702.89,0.00013879,2]
[337802460,1726126238396,-702.89,0.00013882,2]
[337802461,1726126238406,-291.04,0.00013885,2]
[337802462,1726126238416,-702.89,0.00013886,2]
[337802463,1726126238426,-443.49,0.00013887,2]
[337802464,1726126238436,-300.0,0.00013887,2]
[337802465,1726126238445,-702.89,0.0001389,2]
[337802466,1726126238454,-702.89,0.00013893,2]
[337802467,1726126238463,-702.89,0.00013897,2]
[337802468,1726126238472,-229.04,0.00013898,2]
[337802469,1726126238482,-250.0,0.00013898,2]
[337802470,1726126238491,-238.6,0.00013898,2]
[337802471,1726126238500,-190.58,0.00013898,2]
[337802472,1726126238509,-200.0,0.00013899,2]
[337802473,1726126238518,-702.89,0.00013901,2]
[337802475,1726126238527,-702.89,0.00013904,2]
[337802477,1726126238537,-702.89,0.00013908,2]
[337802478,1726126238546,-1000.0,0.00013911,2]
[337802480,1726126238556,-702.89,0.00013912,2]
[337802481,1726126238566,-702.89,0.00013915,2]
[337802482,1726126238575,-702.89,0.00013919,2]
[337802483,1726126238586,-702.89,0.00013922,2]
[337802484,1726126238596,-150.0,0.00013926,2]
[337802485,1726126238607,-294.37072952,0.00013926,2]
[337802543,1726126240507,-336.90433046,0.00013926,2]
[337803146,1726126246629,-71.61494002,0.00013926,2]
[337803148,1726126246639,-702.89,0.0001393,2]
[337803150,1726126246648,-702.89,0.00013933,2]
[337803152,1726126246657,-702.89,0.00013937,2]
[337803154,1726126246666,-702.89,0.00013941,2]
[337803156,1726126246677,-702.89,0.00013944,2]
[337803158,1726126246687,-606.03,0.00014233,2]
[337803160,1726126246696,-420.0,0.00014551,2]
[337803162,1726126246707,-224.9841,0.00014766,2]
[337803164,1726126246718,-349.7963,0.00014766,2]
[337803166,1726126246727,-162.2427854,0.00014766,2]
[337803168,1726126246736,-179.08716712,0.00014767,2]
[337803170,1726126246747,-162.24278535,0.0001477,2]
[337803172,1726126246757,-162.24278535,0.00014773,2]
[337803174,1726126246766,-162.24278535,0.00014777,2]
[337803176,1726126246776,-162.24278535,0.0001478,2]
[337803178,1726126246785,-162.24278535,0.00014784,2]
[337803181,1726126246796,-523.27424933,0.00014784,2]
[337803182,1726126246805,-523.27424931,0.00014786,2]
[337803184,1726126246814,-179.08716711,0.00014787,2]
[337803186,1726126246824,-162.24278535,0.00014787,2]
[337803189,1726126246834,-523.27424931,0.00014787,2]
[337803191,1726126246845,-162.24278535,0.00014791,2]
[337803193,1726126246855,-162.24278535,0.00014794,2]
[337803195,1726126246865,-3000.0,0.000148,2]
[337803197,1726126246874,-211.18,0.00014856,3]
[337803199,1726126246884,-7139.97991651,0.00014857,2]
[337803201,1726126246894,-7139.97991651,0.00014858,2]
[337803203,1726126246904,-500.0,0.00014865,2]
[337803205,1726126246914,-220.95147539,0.00014865,2]
[337803207,1726126246925,-500.0,0.00014865,2]
[337803209,1726126246936,-500.0,0.00014865,2]
[337803211,1726126246946,-500.0,0.00014865,2]
[337803213,1726126246955,-500.0,0.00014865,2]
[337803215,1726126246965,-500.0,0.00014865,2]
[337803217,1726126246975,-500.0,0.00014865,2]
[337803219,1726126246984,-500.0,0.00014865,2]
[337803221,1726126246993,-500.0,0.00014865,2]
[337803223,1726126247002,-500.0,0.00014865,2]
[337803225,1726126247012,-557.59084155,0.00014865,2]
[337803227,1726126247021,-500.0,0.00014865,2]
[337803229,1726126247030,-500.0,0.00014865,2]
[337803231,1726126247040,-500.0,0.00014865,2]
[337803233,1726126247050,-64259.8192486,0.00014865,2]
[337803235,1726126247059,-157079.558163,0.00014866,2]
[337803237,1726126247068,-339540.62084609,0.00014866,2]
[337805867,1726126430344,172.99,0.0001111,2]
[337805868,1726126569765,639.98,0.00011936,2]
[337805871,1726126726888,155.54,0.00010959,2]
[337805884,1726126813035,150.0,0.00010959,2]
[337805885,1726126813328,150.0,0.00010959,2]
[337805886,1726126814208,150.0,0.00010959,2]
[337805887,1726126814275,231.86304848,0.00010959,2]
[337805889,1726126975724,172.99,0.00010546,2]
[337805890,1726127103636,1050.0,0.00011,2]
[337805891,1726127136755,694.68,0.00011194,2]
[337805909,1726127278358,152.98,0.00010959,2]
[337806235,1726127438396,-883.47555039,0.00013055,2]
[337806236,1726127438406,-250.0,0.00013094,2]
[337806237,1726127438416,-500.0,0.00013137,2]
[337806238,1726127438426,-1355.79822213,0.00013142,2]
[337806239,1726127438611,-1082.63522344,0.00013142,2]
[337806240,1726127438623,-397.4107163,0.00013142,2]
[337806241,1726127438635,-1117.92172209,0.00013142,2]
[337806400,1726127440385,-5305.36411604,0.00013142,2]
[337806403,1726127440396,-170.98,0.00013152,2]
[337806406,1726127440406,-150.0,0.00013152,2]
[337806408,1726127440416,-95.48539592,0.00013155,2]
[337806412,1726127440433,-104.51460408,0.00013155,2]
[337806416,1726127440444,-875.76,0.00013157,2]
[337806419,1726127440454,-281.96,0.00013161,2]
[337806421,1726127440463,-157.95,0.00013164,2]
[337806423,1726127440473,-2940.20899643,0.00013191,2]
[337806427,1726127440501,-405.8649999,0.00013191,2]
[337806431,1726127440527,-952.65957156,0.00013191,2]
[337806435,1726127440559,-690.92999997,0.00013191,2]
[337806978,1726127446413,-1155.27938967,0.00013191,2]
[337807043,1726127447056,-592.6712026,0.00013191,2]
[337808622,1726127605328,11509.0,0.000103,5]
[337808623,1726127605578,11509.0,0.000102,3]
[337808624,1726127605875,11502.0,0.0001,2]
[337808783,1726127759268,794.43,0.00011215,2]
[337809212,1726128086801,172.99,0.0001042,2]
[337809301,1726128323392,825.85,0.00011237,2]
[337809318,1726128425243,500.0,0.00011237,2]
[337809319,1726128425432,675.0,0.00011237,2]
[337809335,1726128631529,-187.456,0.00012742,2]
[337809336,1726128631539,-106.70284645,0.00012813,2]
[337809337,1726128631596,-250.0,0.00012813,2]
[337809341,1726128637445,-143.29715355,0.00012813,2]
[337809342,1726128637456,-494.36,0.00012823,2]
[337809343,1726128637467,-172.07,0.00012823,2]
[337809344,1726128637479,-250.0,0.00012823,2]
[337809345,1726128637488,-250.0,0.00012841,2]
[337809346,1726128637499,-5189.4595,0.00012842,2]